bitfinex/quotes_ETHUSD_20250611
["timestamp","ask_amount","ask_price","bid_price","bid_amount"]
[1749644894522,0.5,2767.0,2766.6,0.92775701]
[1749644894737,0.5,2767.0,2766.7,0.0289855]
[1749644895456,0.5,2767.0,2766.8,10.55]
[1749644895659,4.22696977,2767.9,2766.8,10.55]
[1749644896270,0.04,2767.9,2767.1,10.55]
[1749644896563,1.2,2767.7,2767.3,10.55]
[1749644896970,1.2,2767.7,2767.3,10.0]
[1749644897131,1.2,2767.7,2767.0,10.55]
[1749644897857,1.2,2767.7,2767.3,10.0]
[1749644898358,1.2,2767.7,2767.6,0.18]
[1749644915294,0.0375,2767.7,2767.6,1.198]
[1749644915615,0.04,2767.9,2767.6,1.198]
[1749644916109,0.04,2767.9,2767.8,0.18]
[1749644916653,7.83981705,2767.9,2766.6,0.75563628]
[1749644916869,9.64503452,2767.3,2767.1,0.18]
[1749644917116,13.83200429,2767.3,2767.1,0.18]
[1749644918291,4.18696977,2767.3,2767.1,0.18]
[1749644919477,0.04,2767.9,2767.1,0.18]
[1749644919787,0.04,2767.9,2767.6,0.18]
[1749644920294,13.29796468,2767.9,2767.6,0.18]
[1749644920495,9.68503452,2767.9,2767.6,0.18]
[1749644921011,3.61305563,2767.8,2767.6,0.18]
[1749644921208,3.61305563,2767.8,2766.3,0.55]
[1749644921523,9.68503452,2767.9,2767.4,0.18]
[1749644921921,13.29794424,2767.9,2767.4,0.18]
[1749644924118,3.61318526,2767.7,2767.4,0.18]
[1749644924308,13.2979761,2767.9,2767.4,0.18]
[1749644924508,9.68503452,2767.9,2767.4,0.18]
[1749644925277,0.04,2767.9,2767.4,0.18]
[1749644925479,0.04,2767.9,2766.7,10.0]
[1749644925680,0.04,2767.9,2767.6,0.18]
[1749644925894,3.65286518,2767.9,2767.6,0.18]
[1749644926090,13.29789042,2767.9,2767.6,0.18]
[1749644926314,13.29794339,2767.9,2767.6,0.18]
[1749644926704,3.61302555,2767.8,2767.6,0.18]
[1749644926904,13.29795484,2767.9,2767.6,0.18]
[1749644927101,3.6130476,2767.8,2767.6,0.18]
[1749644927320,13.29793334,2767.9,2767.6,0.18]
[1749644927681,3.6129961,2767.8,2767.6,0.18]
[1749644927881,3.61349083,2767.5,2767.3,0.18]
[1749644928229,3.61315418,2767.7,2767.3,0.18]
[1749644928230,0.18,2767.8,2767.3,0.18]
[1749644928388,0.04,2767.9,2767.6,10.0]
[1749644928583,0.04,2767.9,2767.3,0.18]
[1749644929386,0.04,2767.9,2766.7,10.55]
[1749644929387,0.04,2767.9,2766.8,0.55]
[1749644929591,0.04,2767.9,2766.9,1.055]
[1749644930125,0.04,2767.9,2767.1,0.55]
[1749644931140,0.04,2767.9,2766.9,1.055]
[1749644931350,0.04,2767.9,2766.8,0.40191811]
[1749644931695,3.61297781,2767.8,2766.8,0.40191811]
[1749644932005,1.2,2767.7,2766.8,0.40191811]
[1749644932205,1.2,2767.7,2766.2,0.9112]
[1749644932417,1.2,2767.7,2766.1,10.35652508]
[1749644932633,1.2,2767.7,2766.2,0.95890048]
[1749644933214,1.2,2767.7,2766.3,0.3612]
[1749644933448,1.2,2767.7,2766.2,0.95890048]
[1749644933625,1.2,2767.7,2766.3,0.55]
[1749644934444,1.2,2767.7,2766.3,0.9112]
[1749644935109,3.65285814,2767.9,2766.3,0.55]
[1749644935440,0.04,2767.9,2766.3,0.55]
[1749644936144,3.61304139,2767.8,2766.3,0.55]
[1749644936347,3.61312135,2767.7,2766.3,0.55]
[1749644936644,3.6130276,2767.8,2766.3,0.55]
[1749644936846,0.04,2767.9,2766.2,0.80508709]
[1749644936847,3.61360913,2767.4,2766.2,0.80508709]
[1749644937054,0.33783362,2767.8,2766.2,0.40890048]
[1749644937195,3.61376983,2767.2,2766.0,0.18851571]
[1749644937396,3.61297781,2767.8,2766.1,0.55]
[1749644937640,3.61369377,2767.3,2766.1,0.55]
[1749644937810,3.61441032,2766.8,2765.8,0.3579373]
[1749644938141,0.36144103,2766.8,2765.8,0.3579373]
[1749644938312,0.36144103,2766.8,2765.3,0.40133992]
[1749644938313,3.61435088,2766.8,2765.3,0.40133992]
[1749644938495,0.18,2766.8,2766.3,0.18]
[1749644939108,0.36920409,2766.9,2765.6,0.55]
[1749644939308,0.18,2767.4,2766.6,0.18]
[1749644939537,0.18,2767.4,2766.1,0.55]
[1749644939538,0.18,2767.4,2766.8,0.18]
[1749644940038,0.18,2767.6,2767.1,0.18]
[1749644940217,0.3793062,2767.6,2766.0,0.36443737]
[1749644940413,0.18,2767.8,2767.3,0.18]
[1749644940618,0.04,2767.9,2767.4,0.55]
[1749644940817,0.04,2767.9,2767.3,0.18]
[1749644941228,0.04,2767.9,2767.4,0.55]
[1749644941538,0.04,2767.9,2767.1,0.55]
[1749644941700,0.04,2767.9,2767.8,0.18]
[1749644943128,0.04,2767.9,2767.8,0.73]
[1749644943502,0.04,2767.9,2767.8,0.18]
[1749644947453,0.40527585,2767.9,2767.8,0.18]
[1749644947660,0.04,2767.9,2767.8,0.18]
[1749644949952,0.04,2767.9,2767.8,0.30219485]
[1749644951360,3.61297781,2767.8,2765.2,0.31734175]
[1749644951567,3.61369483,2767.3,2765.2,0.31734175]
[1749644951749,0.36136948,2767.2,2766.0,0.13611817]
[1749644952330,3.61370172,2767.3,2766.0,0.13611817]
[1749644952666,3.61334491,2767.6,2766.1,0.55]
[1749644952848,0.35535524,2767.8,2766.1,0.55]
[1749644952849,3.61387068,2767.2,2766.1,0.55]
[1749644953028,3.61316249,2767.7,2766.0,0.13611817]
[1749644953223,3.61316249,2767.7,2766.2,0.13610833]
[1749644953453,10.04,2767.9,2766.2,0.13610833]
[1749644953454,3.6139815,2767.1,2766.2,0.13610833]
[1749644953634,3.61379572,2767.2,2766.2,0.13610833]
[1749644953835,3.61379572,2767.2,2766.3,0.55]
[1749644954470,0.36131625,2767.6,2766.2,0.13610833]
[1749644954834,3.61347707,2767.5,2766.3,0.55]
[1749644955264,0.04,2767.9,2766.5,0.55]
[1749644957759,3.65286798,2767.9,2766.5,0.55]
[1749644958081,0.04,2767.9,2766.5,0.55]
[1749644958387,3.61243155,2768.3,2766.5,0.55]
[1749644958746,3.61263587,2768.1,2766.5,0.55]
[1749644959478,0.04,2768.9,2766.5,0.55]
[1749644959693,0.04,2768.9,2765.8,0.55]
[1749644959845,3.61167292,2768.8,2765.8,0.55]
[1749644960047,3.61230031,2768.4,2765.8,0.55]
[1749644960259,3.61185084,2768.7,2765.8,0.98983859]
[1749644960461,3.61228202,2768.4,2765.8,1.34261819]
[1749644960665,3.61228202,2768.4,2766.0,0.55]
[1749644961494,0.18,2768.3,2768.0,0.55]
[1749644961994,0.18,2768.6,2768.2,0.55]
[1749644962293,3.61167309,2768.8,2768.2,0.55]
[1749644962596,3.83156823,2768.9,2768.5,0.55]
[1749644963882,0.22,2768.9,2768.5,0.55]
[1749644964084,0.04,2768.9,2768.8,0.55]
[1749644966761,0.04,2768.9,2767.6,0.55]
[1749644968789,0.04,2768.9,2767.7,0.18050106]
[1749644968954,0.04,2768.9,2767.8,0.55]
[1749644969160,0.04,2768.9,2767.5,0.96798408]
[1749644969410,0.04,2768.9,2767.6,0.32115115]
[1749644971409,0.04,2768.9,2767.6,1.11376934]
[1749644971573,0.04,2768.9,2768.8,1.1678]
[1749644972261,0.04,2768.9,2768.8,1.43506948]
[1749644973604,0.04,2769.9,2768.9,0.55]
[1749644973785,0.04,2769.9,2769.1,0.55]
[1749644974505,0.04,2769.9,2769.3,0.55]
[1749644977218,0.04,2769.9,2769.8,0.73]
[1749644980401,0.04,2770.9,2769.9,0.55]
[1749644980795,0.04,2770.9,2769.8,0.18]
[1749644981520,0.04,2770.9,2769.7,0.55]
[1749644981697,0.04,2770.9,2769.6,0.26719228]
[1749644982069,0.04,2770.9,2769.7,0.55]
[1749644982309,0.04,2770.9,2769.6,0.26719228]
[1749644982674,0.04,2770.9,2769.7,0.55]
[1749644983907,0.66666667,2771.7,2769.7,0.55]
[1749644986542,0.66666667,2771.7,2769.6,0.26719228]
[1749644986695,0.66666667,2771.7,2769.7,0.3612]
[1749644986899,0.66666667,2771.7,2769.8,0.9112]
[1749644987098,0.66666667,2771.7,2769.8,0.55]
[1749644987743,0.66666667,2771.7,2769.6,0.26719228]
[1749644987744,0.66666667,2771.7,2769.9,0.3612]
[1749644987941,0.66666667,2771.7,2769.7,0.55]
[1749644989765,0.66666667,2771.7,2769.8,0.3612]
[1749644990643,0.66666667,2771.7,2769.6,0.26719228]
[1749644990814,0.66666667,2771.7,2771.4,0.18]
[1749644992063,0.18,2771.5,2771.0,0.18]
[1749644992421,0.66666667,2771.7,2769.6,0.26719228]
[1749644992620,0.84666667,2771.7,2771.2,0.18]
[1749644993621,0.66666667,2771.7,2769.7,0.55]
[1749644993849,0.66666667,2771.7,2771.4,0.18]
[1749644995749,0.66666667,2771.7,2770.4,0.3612]
[1749644995955,0.66666667,2771.7,2771.6,0.18]
[1749645001056,0.04,2772.9,2771.6,0.18]
[1749645001982,5.77218587,2774.6,2771.6,0.18]
[1749645002271,0.66944234,2776.8,2771.7,0.55]
[1749645002496,15.0907,2796.4,2771.7,0.55]
[1749645002497,10.1143,2788.9,2775.1,10.29688679]
[1749645002816,1.78481699,2785.8,2783.6,0.5]
[1749645003105,0.30032958,2785.7,2782.9,3.59337137]
[1749645003316,32.96601824,2787.2,2783.2,3.59298649]
[1749645003521,0.04,2788.9,2787.3,3.58769963]
[1749645003805,0.04,2788.9,2783.8,0.5]
[1749645003806,3.58564308,2788.9,2783.8,0.5]
[1749645004010,0.18651449,2788.1,2784.0,0.5]
[1749645004188,10.0,2788.0,2784.0,0.28426366]
[1749645004490,1.02157363,2787.9,2784.1,0.58410296]
[1749645004822,0.04,2789.9,2784.9,0.5]
[1749645004955,3.58484466,2789.6,2785.2,0.5]
[1749645005294,0.04,2789.9,2785.3,0.29971012]
[1749645005295,3.58509991,2789.4,2785.3,0.29971012]
[1749645005457,3.58807705,2787.1,2785.3,0.29971012]
[1749645005658,0.35880771,2787.0,2785.3,0.60419741]
[1749645005886,0.35880771,2787.0,2786.1,0.04]
[1749645006194,0.35880771,2787.0,2785.3,0.60419741]
[1749645006195,9.33899096,2789.0,2785.3,0.60419741]
[1749645006367,3.58878859,2786.5,2785.1,0.04]
[1749645006569,0.52,2787.1,2785.1,0.04]
[1749645006890,0.00099096,2789.0,2786.9,0.5]
[1749645007060,0.00099096,2789.0,2785.9,0.5]
[1749645007254,0.00099096,2789.0,2787.2,0.5]
[1749645007454,0.00099096,2789.0,2785.2,0.29972088]
[1749645007455,0.30032958,2788.9,2787.5,0.5]
[1749645007661,0.30032958,2788.9,2787.1,0.5]
[1749645007958,0.00099096,2789.0,2788.9,30.5]
[1749645008190,0.00099096,2789.0,2788.9,3.05]
[1749645008389,0.00099096,2789.0,2787.2,0.5]
[1749645008696,0.00099096,2789.0,2782.8,19.59339238]
[1749645008697,0.04,2787.9,2785.7,0.5]
[1749645008995,0.04,2787.9,2787.8,0.5]
[1749645009384,0.2264343,2788.9,2788.8,0.5]
[1749645009582,0.2264343,2788.9,2788.4,0.5]
[1749645009795,0.2264343,2788.9,2785.0,3.59062864]
[1749645009796,0.84397611,2794.8,2790.8,0.5]
[1749645010097,3.68125051,2792.4,2788.8,0.5]
[1749645010312,0.1,2792.4,2791.5,0.5]
[1749645010473,0.1,2792.4,2791.8,0.5]
[1749645010796,0.85311912,2794.7,2791.3,0.5]
[1749645010998,0.85311912,2794.7,2792.8,0.5]
[1749645011171,0.04,2794.9,2792.8,30.6784]
[1749645011373,0.04,2794.9,2792.8,0.1784]
[1749645011696,9.319,2794.4,2792.8,0.1784]
[1749645011895,3.57904128,2794.1,2789.9,0.5]
[1749645012202,3.57810797,2794.8,2790.2,0.5]
[1749645012357,3.57907212,2794.1,2791.5,0.5]
[1749645012561,3.57861395,2794.4,2790.3,0.29917306]
[1749645012784,9.319,2793.0,2789.4,0.5]
[1749645012970,1.23622958,2792.8,2789.4,0.5]
[1749645013169,1.23622958,2792.8,2789.1,0.04]
[1749645013170,0.30030699,2792.7,2790.1,0.04]
[1749645013385,3.58089235,2792.6,2789.1,0.04]
[1749645013598,3.58316186,2790.9,2789.1,0.04]
[1749645013862,0.68840456,2792.5,2788.1,0.04]
[1749645014063,2.4937207,2793.9,2791.4,0.5]
[1749645014283,2.4937207,2793.9,2789.6,0.5]
[1749645014608,2.4937207,2793.9,2788.1,0.04]
[1749645014609,0.04,2793.9,2789.7,0.29923741]
[1749645014775,0.04,2793.9,2789.9,0.5]
[1749645014977,9.309,2793.8,2790.0,0.29920523]
[1749645015278,9.309,2793.8,2790.5,0.5]
[1749645015458,9.309,2793.8,2790.6,0.2991409]
[1749645015459,8.88380349,2792.5,2790.6,0.2991409]
[1749645015664,0.04,2791.9,2790.9,0.5]
[1749645015864,0.04,2791.9,2788.1,0.04]
[1749645015865,0.04,2791.9,2791.8,30.5]
[1749645016085,0.04,2791.9,2791.8,6.033]
[1749645016296,0.04,2793.9,2792.8,30.46]
[1749645016502,0.04,2793.9,2792.0,0.46]
[1749645016872,0.04,2793.9,2792.6,0.46]
[1749645017080,0.04,2793.9,2792.0,0.46]
[1749645017309,0.04,2793.9,2791.7,0.46]
[1749645017514,0.04,2793.9,2791.3,0.46]
[1749645017716,9.297,2793.5,2790.0,0.46]
[1749645018022,9.297,2793.5,2790.4,0.46]
[1749645018023,8.92482826,2792.9,2790.4,0.46]
[1749645018180,8.88482826,2792.1,2790.1,0.46]
[1749645018383,8.88482826,2792.1,2790.4,0.46]
[1749645018708,0.89248283,2792.8,2790.9,0.46]
[1749645019026,0.04,2792.9,2790.5,0.46]
[1749645019382,0.04,2792.9,2791.1,0.46]
[1749645019629,0.04,2792.9,2792.8,0.46]
[1749645019830,0.04,2792.9,2791.4,0.46]
[1749645020037,0.04,2792.9,2790.8,0.46]
[1749645020327,0.04,2792.9,2792.8,0.46]
[1749645020909,0.04,2792.9,2792.8,49.32959716]
[1749645021224,24.00218229,2794.0,2793.9,30.0]
[1749645021532,0.70291055,2799.5,2796.1,0.46]
[1749645021691,25.70902875,2800.8,2799.6,23.11372364]
[1749645021876,8.88705101,2800.2,2797.4,17.20238404]
[1749645022081,25.18902875,2800.8,2800.0,20.8780395]
[1749645022278,1.79012093,2800.3,2796.1,0.46]
[1749645022482,8.84705101,2799.4,2796.2,0.2985418]
[1749645022685,8.84705101,2798.6,2796.2,0.2985418]
[1749645022931,1.0631051,2798.5,2796.2,0.2985418]
[1749645023139,8.84793051,2798.0,2796.2,0.2985418]
[1749645023481,1.0631051,2798.5,2796.2,0.2985418]
[1749645023813,0.1784,2798.5,2796.2,0.2985418]
[1749645024122,10.0,2797.7,2797.1,0.04]
[1749645024298,9.28,2798.0,2797.2,0.29843508]
[1749645024493,9.96,2797.9,2797.2,0.29843508]
[1749645024695,1.924,2797.8,2797.2,0.29843508]
[1749645025112,1.31883177,2797.8,2795.1,0.04]
[1749645025314,8.85698987,2797.5,2795.1,0.04]
[1749645025641,0.04,2797.0,2793.2,0.46]
[1749645025802,8.85698987,2794.9,2792.5,1.03047422]
[1749645026004,0.75864002,2797.4,2791.4,0.46]
[1749645026005,8.85698987,2794.1,2791.4,0.46]
[1749645026204,8.85698987,2793.4,2791.1,0.5]
[1749645026444,9.275,2794.0,2792.0,0.46]
[1749645026642,9.275,2794.0,2791.1,0.04]
[1749645026643,10.0,2793.9,2791.1,0.04]
[1749645026846,17.08666343,2792.5,2791.6,0.46]
[1749645027006,1.9275,2793.8,2791.4,0.46]
[1749645027007,10.0,2793.7,2791.4,0.46]
[1749645027206,10.0,2793.9,2791.3,0.46]
[1749645027440,8.87928189,2793.8,2791.3,0.46]
[1749645027641,10.0,2793.7,2792.2,0.29896948]
[1749645027879,10.0,2793.5,2792.2,0.29896948]
[1749645028078,10.76721008,2793.6,2791.1,0.04]
[1749645028079,10.0,2792.7,2791.1,0.04]
[1749645028374,0.30032958,2792.6,2791.1,0.04]
[1749645028549,1.03003296,2792.5,2791.1,0.04]
[1749645028751,0.30032958,2792.4,2791.1,0.04]
[1749645029334,0.30032958,2792.4,2790.1,0.04]
[1749645029335,3.581722,2792.0,2790.1,0.04]
[1749645029551,0.30032958,2792.4,2790.1,0.04]
[1749645029966,8.88261583,2791.5,2789.1,0.04]
[1749645030277,10.0,2790.4,2789.1,0.04]
[1749645030477,8.90134528,2790.7,2788.1,0.04]
[1749645030679,3.03677432,2790.3,2788.1,0.04]
[1749645030882,10.0,2790.2,2788.1,0.04]
[1749645031676,10.0,2790.0,2788.1,0.04]
[1749645031881,1.0,2789.9,2788.1,0.04]
[1749645032697,10.0,2791.3,2788.1,0.04]
[1749645033003,0.1792,2789.5,2789.0,0.1792]
[1749645033205,10.0,2789.8,2788.1,0.04]
[1749645033412,0.1792,2789.4,2788.9,0.1792]
[1749645033610,0.04,2790.9,2788.1,0.04]
[1749645033611,10.0,2789.7,2788.1,0.04]
[1749645033810,10.0,2789.1,2788.1,0.04]
[1749645033971,0.1792,2788.4,2788.1,0.04]
[1749645034170,10.0,2788.9,2788.2,0.13776402]
[1749645034364,9.319,2790.9,2788.1,0.04]
[1749645034610,3.58357876,2790.6,2788.1,0.04]
[1749645034907,0.30032958,2790.5,2788.1,0.04]
[1749645035111,10.0,2789.9,2788.1,0.04]
[1749645035414,0.30032958,2789.8,2788.1,0.04]
[1749645036697,1.29020259,2790.8,2788.1,0.04]
[1749645036897,1.36124984,2790.7,2788.1,0.04]
[1749645037098,0.30032958,2790.6,2788.1,0.04]
[1749645038113,3.58155242,2792.1,2788.1,0.04]
[1749645038114,13.58278426,2791.2,2788.1,0.04]
[1749645038315,8.90171412,2792.3,2788.1,0.04]
[1749645038637,0.04,2792.9,2790.3,0.5]
[1749645038932,0.04,2792.9,2789.8,2.168]
[1749645039221,0.04,2792.9,2789.9,0.2168]
[1749645039453,10.0,2792.7,2789.9,0.29921596]
[1749645039724,0.04,2792.9,2790.0,30.0]
[1749645040012,0.04,2792.9,2790.1,0.29919451]
[1749645041103,10.0,2792.7,2790.1,0.33919451]
[1749645041319,12.48244259,2792.8,2790.1,0.33919451]
[1749645041320,10.0,2792.3,2790.1,0.33919451]
[1749645041527,3.58126321,2792.4,2790.1,0.33919451]
[1749645041528,0.52,2793.0,2790.1,0.33919451]
[1749645041683,0.52,2793.0,2790.3,0.55]
[1749645041992,9.281,2793.1,2790.1,0.33919451]
[1749645042817,9.281,2793.1,2790.2,30.55]
[1749645043029,9.281,2793.1,2790.4,40.0]
[1749645043189,9.281,2793.1,2790.5,0.29915162]
[1749645044309,0.1784,2793.0,2792.7,0.1784]
[1749645044487,0.04,2793.9,2792.7,0.1784]
[1749645045495,0.04,2793.9,2790.9,0.55]
[1749645045698,0.04,2793.9,2790.5,0.65975144]
[1749645045916,0.04,2793.9,2792.3,3.58121125]
[1749645046236,0.04,2793.9,2791.3,3.58246191]
[1749645046237,0.04,2793.9,2791.8,8.90171412]
[1749645046396,0.04,2793.9,2791.2,30.0]
[1749645046595,0.04,2793.9,2791.4,33.873]
[1749645046814,0.04,2793.9,2790.6,8.90171412]
[1749645047008,0.04,2793.9,2790.7,1.74697695]
[1749645047322,0.04,2793.9,2790.5,0.65444176]
[1749645047323,0.04,2793.9,2791.8,8.90171412]
[1749645047556,0.04,2793.9,2790.7,30.0]
[1749645047706,0.04,2793.9,2790.8,0.60516823]
[1749645048042,0.04,2793.9,2790.9,0.29910874]
[1749645048254,0.04,2793.9,2791.1,1.72563035]
[1749645048459,0.04,2793.9,2791.5,8.90171412]
[1749645048604,0.04,2793.9,2791.6,0.29903374]
[1749645049009,0.04,2793.9,2792.0,30.0]
[1749645049204,0.04,2793.9,2792.1,0.29898019]
[1749645049447,0.04,2793.9,2792.4,28.976]
[1749645049613,0.04,2793.9,2792.5,0.29893737]
[1749645049809,0.04,2793.9,2792.6,28.28345483]
[1749645050012,0.04,2794.9,2793.2,0.55]
[1749645050212,0.04,2795.9,2794.4,8.90171412]
[1749645050453,0.04,2795.9,2794.5,0.29872342]
[1749645051639,7.156,2795.8,2794.5,0.29872342]
[1749645051825,10.7196,2795.7,2791.9,3.58176211]
[1749645052028,16.43,2795.6,2792.3,10.0]
[1749645052227,1.83496,2795.5,2792.4,0.29894807]
[1749645052430,1.83496,2795.5,2792.6,0.55]
[1749645052645,1.83496,2795.5,2793.1,0.04]
[1749645052828,1.83496,2795.5,2793.2,0.29886245]
[1749645053033,8.99096,2795.5,2793.2,0.29886245]
[1749645053236,1.826496,2795.4,2793.2,0.29886245]
[1749645053866,3.61677293,2795.9,2793.2,0.29886245]
[1749645053867,0.04,2795.9,2793.3,30.55]
[1749645054070,0.04,2795.9,2793.2,0.29886245]
[1749645054573,3.61421809,2797.9,2795.1,0.1784]
[1749645054874,3.57569761,2796.7,2795.1,0.1784]
[1749645055095,7.154,2796.8,2795.1,0.1784]
[1749645055369,8.95171412,2799.0,2795.1,0.1784]
[1749645055528,8.95171412,2799.0,2794.6,0.55]
[1749645055529,3.57381085,2798.2,2794.2,10.0]
[1749645055729,10.0,2798.0,2794.5,10.55]
[1749645055929,10.0,2797.7,2793.9,10.0]
[1749645056152,3.57436465,2797.7,2794.0,0.55]
[1749645056352,10.0,2796.9,2793.8,0.55]
[1749645056557,1.35743647,2797.6,2793.8,0.55]
[1749645056754,1.35743647,2797.6,2793.8,3.57935428]
[1749645056755,4.93193915,2797.6,2793.8,3.57935428]
[1749645056967,4.93193915,2797.6,2793.2,0.29886245]
[1749645056968,1.6466,2797.9,2794.1,10.04]
[1749645057142,7.152,2797.5,2796.1,0.04]
[1749645057340,1.6466,2797.9,2796.1,0.04]
[1749645057341,7.152,2797.7,2796.1,0.04]
[1749645057868,1.6466,2797.9,2796.1,0.04]
[1749645058786,0.87986,2797.8,2796.1,0.04]
[1749645060376,9.267,2798.7,2796.1,0.04]
[1749645060687,3.57321517,2798.6,2796.1,0.04]
[1749645060867,12.8400905,2798.7,2796.1,0.04]
[1749645061033,3.5733112,2798.6,2796.1,0.04]
[1749645061235,1.28403112,2798.5,2796.2,0.2985418]
[1749645061489,9.267,2798.7,2796.3,0.55]
[1749645061650,9.267,2798.7,2796.4,0.29852045]
[1749645062033,9.267,2798.7,2796.5,0.55]
[1749645062373,9.267,2798.7,2796.6,0.3274846]
[1749645062532,0.9307,2798.7,2796.7,0.29848843]
[1749645062737,8.94171412,2798.9,2796.7,0.29848843]
[1749645062938,10.0,2798.8,2796.8,0.0289855]
[1749645063238,9.264,2798.8,2796.9,0.29846709]
[1749645063435,0.9304,2798.7,2796.9,0.29846709]
[1749645063638,0.9304,2798.7,2797.0,0.0289855]
[1749645063836,9.264,2798.8,2797.0,0.0289855]
[1749645064079,7.148,2800.4,2797.1,0.29844575]
[1749645064281,20.43001137,2800.8,2797.2,1.70178521]
[1749645064584,27.57801137,2800.8,2800.1,0.1784]
[1749645064779,2.76180114,2800.7,2800.1,0.1784]
[1749645064980,27.57801137,2800.8,2800.1,0.1784]
[1749645064981,20.43001137,2800.8,2800.1,0.1784]
[1749645065203,20.43001137,2800.8,2800.2,0.0289855]
[1749645065966,8.90171412,2803.0,2800.2,0.0289855]
[1749645065967,8.90171412,2803.1,2800.2,0.0289855]
[1749645066264,1.24691009,2803.0,2800.2,0.0289855]
[1749645066585,8.90171412,2802.8,2800.2,0.0289855]
[1749645066905,8.90171412,2803.4,2800.2,0.0289855]
[1749645067107,7.146,2803.3,2800.2,0.0289855]
[1749645067265,8.90171412,2802.4,2800.2,0.0289855]
[1749645067471,10.89017141,2802.3,2800.2,0.0289855]
[1749645067666,9.261,2802.2,2800.2,0.0289855]
[1749645068006,9.261,2802.2,2800.3,0.2981047]
[1749645068208,7.142,2802.7,2800.3,0.2981047]
[1749645068368,7.142,2802.7,2802.1,0.04]
[1749645069129,3.56981006,2801.3,2801.1,0.04]
[1749645069267,16.399,2801.2,2800.1,0.04]
[1749645069471,16.399,2801.2,2797.1,10.04]
[1749645069472,3.57079093,2800.5,2797.1,0.04]
[1749645069719,3.57117348,2800.2,2797.1,0.4018798]
[1749645069867,8.90171412,2801.4,2797.1,0.4018798]
[1749645070198,8.90171412,2801.4,2797.1,20.04]
[1749645070199,7.142,2801.0,2797.1,20.04]
[1749645070511,1.775179,2803.6,2798.5,8.90171412]
[1749645070713,8.90171412,2802.6,2798.6,10.0]
[1749645070881,3.57088405,2800.5,2798.3,0.35359683]
[1749645071082,3.56923458,2801.8,2797.1,0.04]
[1749645071083,7.141,2800.4,2797.7,0.35523914]
[1749645071298,16.396,2800.4,2797.1,0.04]
[1749645071483,0.52,2800.9,2797.5,0.3515975]
[1749645071916,0.7661,2800.9,2797.5,0.3515975]
[1749645072489,10.0,2800.4,2797.1,0.04]
[1749645072695,3.57244927,2799.2,2797.1,0.04]
[1749645072909,7.141,2799.5,2797.1,0.04]
[1749645073222,19.96794092,2799.6,2797.1,0.04]
[1749645073427,3.57207443,2799.5,2797.1,0.04]
[1749645073580,3.57206644,2799.5,2797.1,0.04]
[1749645073780,9.255,2799.6,2797.1,0.04]
[1749645074009,8.0665,2799.5,2797.1,0.04]
[1749645074211,3.57372596,2798.2,2797.1,0.04]
[1749645074419,7.141,2798.1,2797.1,0.04]
[1749645074722,3.57482079,2797.4,2797.1,0.04]
[1749645074906,3.57500357,2797.2,2797.1,0.04]
[1749645075079,0.35748208,2797.3,2796.1,0.04]
[1749645075591,0.1784,2797.5,2796.1,0.04]
[1749645075592,7.141,2797.2,2796.1,0.04]
[1749645076191,3.57564272,2796.7,2795.1,0.04]
[1749645076395,10.0,2796.7,2795.1,0.04]
[1749645076894,7.141,2796.6,2795.1,0.04]
[1749645077307,3.57713141,2795.6,2795.1,0.04]
[1749645077483,7.141,2795.5,2795.1,0.04]
[1749645077711,7.141,2796.1,2795.1,0.04]
[1749645078647,9.258,2796.5,2795.1,0.04]
[1749645079049,7.143,2796.4,2795.1,0.04]
[1749645079417,3.57631978,2796.2,2795.1,0.04]
[1749645079612,7.143,2796.7,2795.1,0.04]
[1749645079829,7.8573,2796.6,2795.1,0.04]
[1749645080036,9.258,2797.5,2795.1,0.04]
[1749645080262,7.145,2797.4,2795.1,0.04]
[1749645080415,9.258,2797.5,2795.1,0.04]
[1749645080616,1.2,2797.3,2795.1,0.04]
[1749645080948,1.2,2797.3,2795.2,0.55]
[1749645081367,2.9603,2797.3,2795.1,0.04]
[1749645081839,10.72000357,2797.2,2795.1,0.04]
[1749645082027,3.57513138,2797.1,2795.1,0.04]
[1749645082361,10.0,2796.6,2795.1,0.04]
[1749645082571,7.145,2796.5,2795.1,0.04]
[1749645082763,1.01053,2797.1,2795.1,0.04]
[1749645082967,3.5760828,2796.4,2795.1,0.04]
[1749645083176,3.57538703,2796.9,2795.1,0.04]
[1749645083692,3.57641081,2796.1,2795.1,0.04]
[1749645083845,7.146,2796.0,2795.1,0.04]
[1749645084173,7.146,2796.3,2795.1,0.04]
[1749645084375,3.57640999,2796.1,2795.1,0.04]
[1749645084581,7.146,2796.2,2795.1,0.04]
[1749645084732,0.1784,2795.9,2795.4,0.1784]
[1749645084937,3.57688203,2795.8,2795.4,0.1784]
[1749645085133,0.1784,2795.9,2795.4,0.1784]
[1749645085483,8.90171412,2796.6,2795.1,0.04]
[1749645085646,0.1784,2796.3,2795.1,0.04]
[1749645085977,1.2,2796.4,2796.2,0.1784]
[1749645086152,9.261,2796.8,2796.2,0.1784]
[1749645086347,9.261,2796.8,2795.1,0.04]